bitfinex/quotes_ETHUSD_20260216
["timestamp","ask_amount","ask_price","bid_price","bid_amount"]
[1771212451216,0.47641913,1952.5,1952.3,0.0011]
[1771212451380,0.47641913,1952.5,1951.7,0.0011]
[1771212453816,0.47641913,1952.8,1951.7,0.47788806]
[1771212455520,0.47641913,1952.8,1951.7,0.0011]
[1771212458020,0.47641913,1952.6,1951.7,0.0011]
[1771212460492,0.47641913,1952.3,1951.7,0.0011]
[1771212460692,9.83886081,1952.4,1951.7,0.0011]
[1771212460693,0.47641913,1952.1,1951.7,0.0011]
[1771212462705,0.47641913,1952.1,1951.5,0.0011]
[1771212463293,0.47641913,1952.1,1951.0,0.00153886]
[1771212463294,0.47641913,1952.0,1951.0,0.00153886]
[1771212463719,0.48346758,1951.7,1951.0,0.00153886]
[1771212464023,0.48346758,1951.5,1951.0,0.00153886]
[1771212466522,0.923,1951.4,1951.0,0.00153886]
[1771212466729,0.47786019,1951.3,1951.0,0.00153886]
[1771212467995,0.923,1951.4,1951.0,0.00153886]
[1771212468826,0.944,1951.5,1951.0,0.00153886]
[1771212470610,0.944,1951.5,1951.0,0.48680266]
[1771212470798,0.47786019,1951.8,1951.0,0.48680266]
[1771212470997,0.944,1951.7,1951.0,0.48680266]
[1771212472126,1.42186019,1951.8,1951.0,0.48680266]
[1771212472609,1.42186019,1951.8,1951.0,0.00153886]
[1771212473896,0.944,1951.8,1951.0,0.48680266]
[1771212475726,0.944,1951.8,1951.1,0.0011]
[1771212475931,0.001,1951.7,1951.1,0.0011]
[1771212476134,0.001,1951.7,1951.2,0.4852638]
[1771212480102,0.001,1951.7,1951.1,0.0011]
[1771212480329,0.001,1951.7,1951.1,0.4863638]
[1771212481049,0.47786019,1952.5,1951.3,0.4852638]
[1771212481417,0.47786019,1952.5,1951.3,1.7664592]
[1771212481625,0.47786019,1952.5,1951.4,0.4852638]
[1771212481827,0.47886019,1952.7,1951.4,0.4852638]
[1771212483006,0.47886019,1952.7,1951.4,1.28109527]
[1771212483244,0.47886019,1952.7,1951.5,0.4852638]
[1771212484442,0.001,1952.7,1951.6,0.4852638]
[1771212484841,0.47886019,1952.7,1951.6,0.4852638]
[1771212486149,0.001,1952.7,1951.7,0.4852638]
[1771212486446,0.001,1952.7,1951.8,0.4852638]
[1771212487048,0.001,1952.7,1951.8,10.32412461]
[1771212487221,0.001,1952.7,1951.9,0.4852638]
[1771212488048,0.001,1952.7,1952.1,0.4852638]
[1771212488656,0.001,1952.7,1952.2,0.4852638]
[1771212488826,0.001,1952.6,1952.3,0.4852638]
[1771212489217,0.00153886,1953.0,1952.5,0.4852638]
[1771212490755,0.00153886,1953.0,1952.3,0.4852638]
[1771212491450,0.00153886,1953.0,1952.0,0.4852638]
[1771212492668,0.00153886,1953.0,1952.0,1.76599578]
[1771212492851,0.00153886,1953.0,1952.1,0.4852638]
[1771212493358,0.00153886,1953.0,1952.3,0.4852638]
[1771212493926,0.49195353,1953.0,1952.1,0.48800732]
[1771212494326,0.49195353,1953.0,1951.9,1.41000732]
[1771212494827,0.49195353,1953.0,1952.0,0.53923682]
[1771212497132,0.00153886,1953.0,1952.0,0.53923682]
[1771212497433,0.00153886,1953.0,1952.1,0.48800732]
[1771212497753,0.00153886,1953.0,1952.3,0.48800732]
[1771212498065,0.00153886,1953.0,1952.3,1.40900732]
[1771212498849,0.00153886,1953.0,1952.4,0.48800732]
[1771212500461,0.001,1952.9,1952.4,0.48800732]
[1771212501732,0.001,1952.9,1952.6,0.48800732]
[1771212502259,1.41341467,1953.6,1952.6,0.48800732]
[1771212503559,0.923,1953.6,1952.8,0.48800732]
[1771212503940,1.41341467,1953.6,1952.7,0.921]
[1771212504346,1.41341467,1953.6,1952.7,1.40900732]
[1771212504751,0.923,1953.6,1952.8,0.48800732]
[1771212506067,0.001,1953.6,1952.8,0.48800732]
[1771212508664,0.49141467,1953.6,1952.8,0.48800732]
[1771212509943,0.001,1953.6,1952.8,0.48800732]
[1771212510538,0.001,1953.6,1952.9,0.48800732]
[1771212510742,0.001,1953.6,1953.0,0.48800732]
[1771212512175,0.001,1953.6,1953.0,0.53921004]
[1771212512655,0.001,1953.6,1953.1,1.40400732]
[1771212512986,0.001,1953.6,1953.2,0.48800732]
[1771212513272,0.001,1953.9,1953.2,0.48800732]
[1771212513650,0.001,1954.2,1953.5,0.48800732]
[1771212513839,0.001,1954.2,1953.6,0.48800732]
[1771212514541,0.001,1954.2,1953.8,0.48800732]
[1771212514979,0.001,1954.2,1953.6,0.48800732]
[1771212520268,0.49141467,1954.2,1953.5,0.916]
[1771212521460,0.001,1954.2,1953.5,0.916]
[1771212521660,0.001,1954.2,1953.5,1.40400732]
[1771212522060,0.001,1954.2,1953.6,0.48800732]
[1771212526175,0.001,1954.2,1953.7,0.0011]
[1771212526478,0.4956314,1954.1,1953.7,0.0011]
[1771212529080,0.001,1954.1,1953.7,0.0011]
[1771212533182,0.4956314,1954.1,1953.7,0.0011]
[1771212533565,0.001,1954.1,1953.7,0.0011]
[1771212535983,0.001,1954.1,1953.7,0.45113198]
[1771212536769,0.001,1954.1,1953.7,0.0011]
[1771212540199,0.001,1954.1,1953.8,0.0011]
[1771212540400,0.001,1954.0,1953.8,0.0011]
[1771212540867,0.4956314,1954.0,1953.5,0.0011]
[1771212541065,0.4956314,1954.0,1953.0,0.00153886]
[1771212541292,0.4956314,1954.0,1953.0,1.73164944]
[1771212541496,0.4956314,1954.0,1953.0,0.00153886]
[1771212542098,0.4956314,1954.0,1953.0,0.45157084]
[1771212542299,0.4956314,1954.0,1953.1,0.45003198]
[1771212543008,0.4956314,1954.0,1953.0,9.07051334]
[1771212543211,0.4956314,1954.0,1953.0,0.00153886]
[1771212543374,0.4956314,1954.0,1953.0,0.45157084]
[1771212545306,0.4956314,1954.0,1953.0,0.00153886]
[1771212546890,0.4946314,1953.9,1953.0,0.00153886]
[1771212549105,0.4946314,1953.7,1953.0,0.00153886]
[1771212551801,0.4946314,1953.6,1953.0,0.00153886]
[1771212552484,0.001,1954.0,1953.0,0.45157084]
[1771212552880,0.4956314,1954.0,1953.0,0.45157084]
[1771212554010,0.4956314,1954.0,1953.1,0.0011]
[1771212554211,0.47768973,1953.8,1953.1,0.0011]
[1771212567932,0.47768973,1953.8,1953.2,0.0011]
[1771212568130,0.001,1953.7,1953.2,0.0011]
[1771212568324,0.47868973,1953.7,1953.2,0.0011]
[1771212570432,0.18685624,1953.6,1952.8,0.0011]
[1771212570740,0.47768973,1953.6,1952.1,0.4775281]
[1771212570910,0.47768973,1953.4,1952.1,0.4775281]
[1771212573435,0.47768973,1953.4,1952.3,0.4653802]
[1771212573624,0.47768973,1953.4,1952.5,0.4653802]
[1771212581144,0.47768973,1953.6,1952.5,0.4653802]
[1771212582241,0.001,1953.3,1952.5,0.4653802]
[1771212582933,0.47868973,1953.3,1952.5,0.4653802]
[1771212584959,4.6296,1953.2,1952.1,0.0011]
[1771212585166,0.498358,1953.0,1952.1,0.0011]
[1771212585467,0.498358,1953.0,1952.1,0.47210593]
[1771212589863,0.498358,1953.0,1952.2,8.34954166]
[1771212590163,0.498358,1953.0,1952.1,0.0011]
[1771212590164,0.47728358,1953.2,1952.4,8.34954166]
[1771212590538,0.47728358,1953.1,1952.2,8.34954166]
[1771212590738,0.47728358,1953.1,1952.3,0.47100593]
[1771212593777,0.001,1953.3,1952.2,0.47100593]
[1771212594352,0.001,1953.1,1952.2,0.47100593]
[1771212595869,0.001,1953.1,1952.2,1.75161067]
[1771212596071,0.001,1953.1,1952.3,0.47100593]
[1771212599296,0.001,1953.1,1952.4,0.47100593]
[1771212600973,0.001,1953.1,1952.5,0.47100593]
[1771212602206,0.001,1953.3,1952.8,0.47100593]
[1771212602404,0.001,1953.7,1953.0,0.47100593]
[1771212602567,0.001,1953.7,1953.1,0.47100593]
[1771212603692,0.47828358,1953.7,1952.8,0.47100593]
[1771212603863,0.47828358,1953.7,1952.9,0.895]
[1771212604588,0.47728358,1953.5,1952.6,1.39300593]
[1771212606494,0.47728358,1953.5,1952.7,0.52210617]
[1771212606698,0.47828358,1953.4,1952.6,0.97310024]
[1771212607000,0.47828358,1953.4,1952.6,1.44410617]
[1771212607596,0.47828358,1953.4,1952.6,1.39300593]
[1771212608295,0.47828358,1953.4,1952.7,0.47100593]
[1771212608503,0.47828358,1953.4,1952.7,0.52210093]
[1771212608692,0.47828358,1953.4,1952.7,0.47100593]
[1771212609199,0.001,1953.4,1952.8,0.47100593]
[1771212609398,0.001,1953.7,1953.1,0.47100593]
[1771212610186,0.001,1953.7,1953.1,0.52208784]
[1771212610372,0.001,1953.7,1953.1,0.05108191]
[1771212610569,0.001,1953.7,1953.1,0.52208784]
[1771212610969,0.001,1953.7,1953.2,0.47100593]
[1771212611174,0.001,1953.9,1953.3,0.47100593]
[1771212611398,0.001,1954.1,1953.6,0.47100593]
[1771212611598,0.47728358,1954.7,1953.8,0.47100593]
[1771212612673,0.47982244,1955.0,1953.8,0.47100593]
[1771212612888,0.47828358,1954.8,1953.8,0.47100593]
[1771212614213,0.47828358,1954.8,1953.7,0.895]
[1771212616791,0.47828358,1954.8,1953.7,1.3532409]
[1771212617896,0.47828358,1954.8,1953.7,0.895]
[1771212618595,0.86,1954.7,1953.4,0.4582409]
[1771212618790,0.45850491,1954.6,1953.4,0.4582409]
[1771212619805,0.861,1954.7,1953.4,0.4582409]
[1771212619806,0.45850491,1954.4,1953.4,0.4582409]
[1771212620525,0.45850491,1954.4,1953.3,1.816]
[1771212622020,0.45850491,1954.4,1953.3,2.2742409]
[1771212625020,0.45850491,1954.4,1953.3,1.816]
[1771212625395,0.45850491,1954.4,1953.3,0.922]
[1771212626824,0.45850491,1954.3,1953.3,0.922]
[1771212627025,0.45850491,1954.2,1953.3,0.922]
[1771212627405,0.45850491,1954.2,1953.0,0.00153886]
[1771212628707,0.45850491,1954.2,1953.0,0.45977976]
[1771212629708,0.45850491,1954.4,1953.3,0.4582409]
[1771212630421,0.5,1954.5,1953.6,0.4582409]
[1771212630632,0.001,1954.7,1953.8,0.4582409]
[1771212631207,0.45950491,1954.7,1953.8,0.4582409]
[1771212631645,0.001,1954.7,1953.8,0.4582409]
[1771212632217,0.001,1954.3,1953.8,0.4582409]
[1771212634916,0.001,1954.3,1953.9,0.4582409]
[1771212635410,0.001,1954.7,1954.0,0.4582409]
[1771212637310,0.001,1954.7,1954.1,0.4582409]
[1771212640446,0.001,1954.7,1954.2,0.4582409]
[1771212641556,0.001,1954.7,1954.0,0.4582409]
[1771212642624,0.001,1954.7,1953.9,0.893]
[1771212643234,0.001,1954.7,1953.9,1.3512409]
[1771212644435,0.001,1954.7,1954.0,0.0011]
[1771212644638,0.001,1954.6,1954.0,0.0011]
[1771212644973,0.46872074,1954.6,1954.0,0.0011]
[1771212649532,0.49143919,1954.4,1954.0,0.0011]
[1771212651774,0.49143919,1954.4,1953.7,0.0011]
[1771212652874,0.851,1954.3,1953.7,0.0011]
[1771212653077,0.49143919,1954.2,1953.7,0.0011]
[1771212656597,0.49143919,1954.2,1953.1,0.0011]
[1771212657678,0.49143919,1954.2,1953.8,0.0011]
[1771212657881,0.49143919,1954.2,1953.1,0.0011]
[1771212658078,0.49143919,1954.2,1953.7,0.0011]
[1771212658079,0.49143919,1953.9,1953.7,0.0011]
[1771212658280,0.49143919,1953.7,1953.1,0.0011]
[1771212658493,0.49143919,1953.7,1953.5,0.0011]
[1771212658801,0.49143919,1953.7,1953.1,0.0011]
[1771212661203,0.922,1953.6,1952.8,0.0011]
[1771212661403,0.49143919,1953.5,1952.8,0.0011]
[1771212662105,0.49143919,1953.2,1952.4,0.0011]
[1771212662307,0.49143919,1953.0,1952.4,0.0011]
[1771212662478,0.49143919,1953.2,1952.4,0.0011]
[1771212662678,0.723,1953.2,1952.4,0.48551943]
[1771212665086,0.49143919,1953.2,1952.4,0.48551943]
[1771212665491,0.49143919,1953.2,1952.4,0.0011]
[1771212665694,0.49143919,1953.2,1952.4,0.48551943]
[1771212667115,0.49143919,1953.2,1952.4,0.0011]
[1771212670201,0.49143919,1953.1,1952.5,0.0011]
[1771212670394,0.49243919,1953.1,1952.5,0.0011]
[1771212680397,1.31375769,1953.0,1952.5,0.0011]
[1771212680896,0.45875769,1952.9,1952.5,0.0011]
[1771212688715,0.45875769,1952.8,1952.2,0.0011]
[1771212692354,0.45875769,1952.5,1952.0,0.00173886]
[1771212692515,1.31775769,1952.4,1952.0,0.00173886]
[1771212693011,0.859,1952.4,1952.0,0.00173886]
[1771212693617,0.859,1952.4,1952.3,0.0011]
[1771212693920,0.859,1952.4,1952.0,0.00173886]
[1771212694115,0.859,1952.4,1952.2,0.0011]
[1771212695718,0.45875769,1952.7,1952.2,0.0011]
[1771212695912,0.859,1952.6,1952.2,0.0011]
[1771212698564,0.859,1952.6,1952.2,0.48686561]
[1771212698748,0.862,1952.6,1952.2,0.48686561]
[1771212700155,1.32075769,1952.6,1952.2,0.0011]
[1771212700354,0.45875769,1952.5,1952.0,0.00173886]
[1771212701437,0.45975769,1952.9,1952.0,0.48750447]
[1771212701658,0.861,1952.8,1952.0,0.48750447]
[1771212703543,0.001,1952.9,1952.0,0.48750447]
[1771212703765,0.861,1952.8,1952.0,0.48750447]
[1771212705572,0.001,1952.9,1952.0,0.48750447]
[1771212705742,0.862,1952.9,1952.1,0.0011]
[1771212706070,0.001,1952.7,1952.2,0.49143753]
[1771212706849,0.001,1952.7,1952.1,0.0011]
[1771212707164,0.001,1952.7,1952.1,0.49253753]
[1771212708867,0.46504736,1952.7,1952.1,0.49253753]
[1771212709071,0.46504736,1952.7,1952.1,0.0011]
[1771212710544,0.46504736,1952.7,1952.0,0.00173886]
[1771212711858,0.001,1952.7,1952.1,0.49143753]
[1771212712261,0.46504736,1952.7,1952.0,0.00173886]
[1771212715380,1.32304736,1952.6,1952.0,0.00173886]
[1771212717283,0.46404736,1952.5,1952.0,0.00173886]
[1771212717756,0.46404736,1952.5,1952.1,0.0011]
[1771212720267,0.46404736,1952.4,1951.8,0.0011]
[1771212723159,9.93955525,1952.3,1951.0,0.00153886]
[1771212723488,0.923,1952.5,1951.5,0.49253753]
[1771212723692,0.859,1952.4,1951.5,0.49253753]
[1771212723888,0.46404736,1952.3,1951.5,0.49253753]
[1771212724188,0.859,1952.4,1951.5,0.49253753]
[1771212724189,0.859,1952.4,1951.6,0.49143753]
[1771212725683,0.001,1952.6,1951.8,0.49143753]
[1771212727998,0.001,1952.6,1951.9,0.49143753]
[1771212729873,0.001,1952.3,1951.9,0.49143753]
[1771212732796,0.001,1952.6,1951.9,0.49143753]
[1771212733000,0.46504736,1952.6,1951.7,0.0011]
[1771212733179,0.46504736,1952.6,1951.7,0.49253753]
[1771212735502,0.001,1952.6,1951.7,0.49253753]
[1771212737410,0.4834393,1952.6,1951.7,0.49253753]
[1771212738677,0.001,1952.6,1951.7,0.49253753]
[1771212740407,0.4834393,1952.6,1951.7,0.49253753]
[1771212740609,0.4834393,1952.6,1951.7,0.0011]
[1771212741391,0.4834393,1952.6,1951.7,0.45768356]
[1771212741899,0.001,1952.5,1951.7,0.45768356]
[1771212742094,0.001,1952.5,1951.8,0.45658356]
[1771212743399,0.001,1952.5,1951.7,0.45768356]
[1771212743987,0.001,1952.5,1951.8,0.45658356]
[1771212744515,0.4834393,1952.5,1951.7,0.0011]
[1771212745393,0.4834393,1952.5,1951.7,0.45768356]
[1771212746592,0.4834393,1952.5,1951.7,0.0011]
[1771212748110,0.49242222,1952.0,1951.4,0.0011]
[1771212748316,2.26342222,1951.9,1951.4,0.0011]
[1771212748815,0.49242222,1951.8,1951.4,0.0011]
[1771212750114,0.49242222,1951.8,1951.0,0.00153886]
[1771212750510,2.26442222,1951.7,1951.0,0.00153886]
[1771212750738,1.772,1951.6,1951.0,0.00153886]
[1771212752028,0.923,1951.6,1951.0,0.00153886]
[1771212752202,0.849,1951.5,1951.0,0.00153886]
[1771212753104,1.34142222,1951.5,1951.0,0.00153886]
[1771212754122,1.34142222,1951.5,1951.1,0.0011]
[1771212758238,9.09184445,1952.2,1951.1,0.48860707]
[1771212758542,0.923,1951.9,1951.1,0.48860707]
[1771212758926,9.09284445,1952.5,1951.6,0.48750707]
[1771212758927,0.001,1952.5,1951.6,0.48750707]
[1771212759110,0.851,1952.5,1951.6,0.48750707]
[1771212759506,0.49242222,1952.4,1951.1,0.0011]
[1771212759737,0.49242222,1952.4,1951.1,0.48860707]
[1771212760508,0.49242222,1952.2,1951.1,0.48860707]
[1771212763318,2.26442222,1952.1,1951.1,0.48860707]
[1771212764344,0.49836905,1952.0,1951.1,0.0011]
[1771212764924,0.49836905,1951.8,1951.1,0.0011]
[1771212765721,0.923,1951.8,1951.1,0.0011]
[1771212765920,0.849,1951.7,1951.1,0.48781219]
[1771212766325,0.849,1951.7,1951.2,0.0011]
[1771212767040,0.46770762,1952.0,1951.2,0.0011]
[1771212767354,1.771,1951.9,1951.2,0.0011]
[1771212767720,0.46770762,1951.8,1951.2,0.0011]
[1771212768648,1.771,1951.7,1951.2,0.0011]
[1771212770427,0.848,1951.7,1951.2,0.0011]
[1771212771063,0.57010762,1951.2,1950.0,0.48825105]
[1771212771225,1.771,1951.1,1950.0,0.48825105]
[1771212771536,0.31507625,1951.7,1950.6,0.48671219]
[1771212771847,0.1024,1951.8,1950.6,0.48671219]
[1771212772033,0.57010762,1951.8,1950.6,0.48671219]
[1771212773660,0.847,1951.7,1950.7,0.48671219]
[1771212774140,1.31470762,1951.7,1950.5,0.48671219]
[1771212775723,0.46770762,1951.7,1950.6,0.48671219]
[1771212775929,0.846,1951.7,1950.6,0.48671219]
[1771212777757,0.846,1951.7,1950.8,0.48671219]
[1771212778830,0.1024,1951.8,1950.8,0.48671219]
[1771212779026,1.8704,1951.8,1950.9,0.48781219]
[1771212779233,0.001,1951.6,1950.9,0.48781219]
[1771212779950,0.001,1951.6,1951.0,0.48671219]
[1771212780342,0.00153886,1952.0,1951.0,0.48671219]
[1771212780538,0.00153886,1952.0,1951.1,0.48671219]
[1771212781230,0.00153886,1952.0,1951.0,9.09184445]
[1771212781231,0.00153886,1952.0,1951.4,0.48671219]
[1771212781881,0.00153886,1952.0,1951.6,0.48671219]
[1771212782156,0.001,1952.5,1951.6,0.48671219]
[1771212783955,0.001,1952.5,1951.8,0.48671219]
[1771212789545,0.001,1952.5,1951.6,0.48671219]
[1771212790973,0.001,1952.5,1951.7,0.48671219]
[1771212791175,0.001,1952.5,1951.7,0.48781219]
[1771212791340,0.501,1952.4,1951.7,0.48781219]
[1771212791876,0.001,1952.4,1951.9,0.48671219]
[1771212792046,0.001,1952.5,1951.9,0.48671219]
[1771212793285,0.001,1952.5,1952.1,0.48671219]
[1771212793490,0.001,1952.7,1952.1,0.48671219]
[1771212793699,0.00153886,1953.0,1952.2,1.29922435]
[1771212794060,0.00153886,1953.0,1952.2,1.3504486]
[1771212794292,0.00153886,1953.0,1952.3,0.45422435]
[1771212795092,0.00153886,1953.0,1952.4,0.45422435]
[1771212795299,0.00153886,1953.0,1952.6,0.45422435]
[1771212802198,0.45194159,1953.9,1953.0,0.45422435]
[1771212804310,0.45194159,1953.9,1952.7,5.96904236]
[1771212804311,0.45194159,1953.9,1952.7,0.848]
[1771212804796,0.5,1953.8,1952.7,0.848]
[1771212804998,0.45194159,1953.7,1952.7,0.848]
[1771212806372,0.45194159,1953.7,1952.3,9.09184445]
[1771212806373,0.45194159,1953.5,1952.3,0.847]
[1771212806574,0.45194159,1953.5,1952.3,1.30122435]
[1771212807480,0.45194159,1953.5,1952.3,0.847]
[1771212807995,0.45194159,1953.7,1952.4,0.45422435]
[1771212808208,0.45194159,1953.7,1952.8,1.28021302]
[1771212808412,0.5,1953.8,1952.9,0.45422435]
[1771212809020,0.45194159,1953.7,1952.7,0.846]
[1771212809188,0.45194159,1953.7,1952.4,0.45422435]
[1771212809620,0.45194159,1953.7,1952.3,0.846]
[1771212809825,0.45194159,1953.7,1952.4,0.45422435]
[1771212810922,0.45194159,1953.5,1952.4,0.45422435]
[1771212813742,0.45194159,1953.5,1952.3,0.846]
[1771212814941,0.45194159,1953.4,1952.1,0.45422435]
[1771212815920,0.45194159,1953.4,1952.5,0.0011]
[1771212816115,0.45294159,1953.4,1952.5,0.0011]
[1771212816633,0.922,1953.3,1952.5,0.0011]
[1771212816831,0.45194159,1953.2,1952.5,0.0011]
[1771212817434,0.55434159,1953.2,1952.2,0.0011]
[1771212818519,0.45194159,1952.8,1952.2,0.0011]
[1771212819045,0.833,1952.7,1952.2,0.0011]
[1771212821554,0.45194159,1952.6,1952.2,0.0011]
[1771212822055,0.45194159,1952.6,1952.0,0.00153886]
[1771212822533,1.754,1952.5,1952.0,0.00153886]
[1771212823153,2.20594159,1952.5,1952.0,0.00153886]
[1771212823449,0.45194159,1952.4,1952.0,0.00153886]
[1771212825343,0.45194159,1952.4,1951.8,0.0011]
[1771212826423,2.21257364,1952.3,1951.8,0.0011]
[1771212826731,0.45757364,1952.2,1951.2,0.49639264]
[1771212827551,1.29057364,1952.1,1951.2,0.49639264]
[1771212828339,1.29057364,1952.1,1951.6,0.0011]
[1771212830160,0.45757364,1952.5,1951.6,0.0011]
[1771212830370,0.45757364,1952.3,1951.6,0.0011]
[1771212833464,0.45757364,1952.2,1951.6,0.0011]
[1771212833965,0.834,1952.1,1951.6,0.0011]
[1771212834165,0.1024,1952.3,1951.6,0.0011]
[1771212834166,0.45757364,1952.3,1951.6,0.0011]
[1771212834354,0.45757364,1952.5,1951.6,0.49749264]
[1771212834555,0.834,1952.3,1951.6,0.49749264]
[1771212834757,0.45757364,1952.5,1951.6,0.49749264]
[1771212834964,0.923,1952.7,1951.6,0.49749264]
[1771212835140,0.45757364,1952.6,1951.6,0.0011]
[1771212836179,0.923,1952.7,1951.6,0.49749264]
[1771212836338,1.38057364,1952.7,1951.6,0.49749264]
[1771212836540,0.836,1952.6,1951.7,0.49639264]
[1771212836762,1.3821125,1953.0,1951.7,0.49639264]
[1771212837041,0.838,1952.8,1951.7,0.49639264]
[1771212837637,0.83953886,1953.0,1952.0,0.49639264]
[1771212838062,0.00153886,1953.0,1952.0,0.49639264]
[1771212838450,0.00153886,1953.0,1952.1,0.49639264]
[1771212839362,0.4591125,1953.0,1952.1,0.49639264]
[1771212840081,0.4591125,1953.0,1951.7,0.49639264]
[1771212840379,0.5,1952.9,1951.7,0.49639264]
[1771212840577,0.5,1952.9,1951.7,0.49749264]
[1771212840961,0.501,1952.9,1951.7,0.49749264]
[1771212841362,0.501,1952.9,1951.8,0.49639264]
[1771212843558,0.501,1952.9,1951.9,0.49639264]
[1771212844284,0.501,1952.9,1952.0,0.49639264]
[1771212847591,0.95857364,1952.9,1952.0,0.49639264]
[1771212848791,0.501,1952.9,1952.0,0.49639264]
[1771212848990,0.501,1952.9,1952.1,0.49639264]
[1771212851793,0.501,1952.9,1951.9,0.49639264]
[1771212851966,0.95857364,1952.9,1951.9,0.49639264]
[1771212852167,0.001,1952.8,1951.9,0.49639264]
[1771212856002,0.49495166,1952.7,1951.8,0.846]
[1771212856203,0.49495166,1952.7,1951.7,0.0011]
[1771212858767,1.754,1952.8,1951.7,0.49629351]
[1771212859181,2.24895166,1952.8,1951.7,0.49629351]
[1771212859386,0.49495166,1952.7,1951.7,0.49629351]
[1771212859793,0.49495166,1952.7,1951.7,0.0011]
[1771212861098,0.49495166,1952.7,1951.7,0.49629351]
[1771212862903,0.001,1952.8,1951.8,0.49519351]
[1771212863405,0.49595166,1952.8,1951.7,0.0011]
[1771212867377,0.001,1952.8,1951.8,0.54636393]
[1771212869595,0.001,1952.8,1951.9,0.49519351]
[1771212869906,0.001,1952.8,1952.1,0.49519351]
[1771212870102,0.001,1952.8,1952.3,0.49519351]
[1771212871486,0.001,1952.8,1952.4,0.49519351]
[1771212871804,0.00153886,1953.0,1952.6,0.49519351]
[1771212872801,0.001,1953.3,1952.6,0.49519351]
[1771212875108,0.001,1953.3,1952.7,0.49519351]
[1771212876309,0.001,1952.9,1952.7,0.49519351]
[1771212876510,0.001,1953.3,1952.7,0.49519351]
[1771212877308,0.001,1953.3,1952.8,0.49519351]
[1771212881094,0.001,1953.3,1952.9,0.49519351]
[1771212883288,0.001,1953.3,1953.0,0.49519351]
[1771212883490,0.49649052,1954.0,1953.1,0.49519351]
[1771212883913,0.00153886,1954.0,1953.1,0.49519351]
[1771212884130,0.45178704,1954.0,1953.2,0.858]
[1771212887939,0.45178704,1954.0,1953.2,0.48054709]
[1771212888241,0.45178704,1954.0,1952.9,0.48054709]
[1771212888444,0.001,1953.9,1952.9,0.48054709]
[1771212888993,0.001,1953.9,1953.3,0.48054709]
[1771212889233,0.001,1953.9,1952.8,0.0011]
[1771212889234,0.46711141,1953.9,1952.8,0.0011]
[1771212889532,0.46611141,1953.4,1952.5,0.0011]
[1771212890295,0.46611141,1953.2,1952.5,0.0011]
[1771212890871,0.46611141,1953.1,1952.5,0.0011]
[1771212895715,0.831,1953.0,1952.5,0.0011]
[1771212896035,1.753,1953.0,1952.5,0.0011]
[1771212896232,0.46611141,1952.9,1952.5,0.0011]
[1771212896534,0.832,1952.9,1952.5,0.0011]
[1771212896909,0.46611141,1952.8,1952.5,0.0011]
[1771212900105,0.5,1952.7,1952.5,0.0011]
[1771212900642,0.5,1952.7,1952.6,0.0011]
[1771212904238,0.96611141,1952.7,1952.6,0.0011]
[1771212904620,0.5,1952.7,1952.6,0.0011]
[1771212905831,0.83,1952.9,1952.6,0.0011]
[1771212906031,1.29611141,1952.9,1952.6,0.0011]
[1771212907226,0.83,1952.9,1952.6,0.0011]
[1771212908465,1.29611141,1952.9,1952.6,0.0011]
[1771212909664,1.29611141,1952.9,1952.5,0.0011]
[1771212909851,0.46611141,1952.8,1952.3,0.0011]
[1771212912941,0.833,1952.7,1952.3,0.0011]
[1771212913673,0.833,1952.7,1952.6,0.0011]
[1771212913974,0.833,1952.7,1952.3,0.0011]
[1771212914278,0.833,1952.7,1952.5,0.0011]
[1771212914977,0.46711141,1952.8,1952.5,0.0011]
[1771212914978,0.001,1952.8,1952.5,0.0011]
[1771212915148,0.836,1952.8,1952.5,0.0011]
[1771212916156,0.001,1952.8,1952.5,0.0011]
[1771212916552,0.001,1952.8,1952.5,0.45479862]
[1771212917845,0.001,1953.0,1952.6,0.45369862]
[1771212918061,0.834,1953.3,1952.6,0.45369862]
[1771212918267,0.835,1953.4,1952.6,0.45369862]
[1771212919176,0.001,1953.3,1952.6,0.45369862]
[1771212921548,0.47693673,1953.8,1952.6,0.45369862]
[1771212921750,0.001,1953.7,1952.7,0.05102079]
[1771212921961,0.001,1953.7,1952.8,0.45369862]
[1771212923783,0.47693673,1953.6,1952.8,0.45369862]
[1771212924181,0.001,1953.5,1952.8,0.45369862]
[1771212925387,0.47693673,1953.6,1952.8,0.45369862]
[1771212925680,0.001,1953.4,1952.8,0.45369862]
[1771212925883,0.001,1953.2,1952.8,0.45369862]
[1771212926291,0.002,1953.2,1952.7,0.45479862]
[1771212926892,0.002,1953.2,1952.7,0.0011]
[1771212927798,0.47893673,1953.2,1952.7,0.0011]
[1771212930671,0.002,1953.2,1952.7,0.45479862]
[1771212931566,0.47893673,1953.2,1952.7,0.0011]
[1771212931766,0.47893673,1953.2,1952.5,0.0011]
[1771212931959,0.47793673,1953.2,1952.5,0.0011]
[1771212932788,0.832,1953.1,1952.5,0.0011]
[1771212932990,1.30993673,1953.1,1952.5,0.0011]
[1771212933484,0.47693673,1953.0,1952.5,0.0011]
[1771212933859,0.001,1952.9,1952.5,0.0011]
[1771212934992,0.001,1952.9,1952.5,0.45479862]
[1771212935355,0.001,1953.2,1952.5,0.45479862]
[1771212935559,0.001,1953.1,1952.5,0.45479862]
[1771212936689,0.001,1953.2,1952.5,0.45479862]
[1771212936873,0.001,1953.1,1952.5,0.45479862]
[1771212937982,0.001,1953.1,1952.6,0.0011]
[1771212938170,0.001,1953.1,1952.6,0.45479862]
[1771212938584,0.001,1953.2,1952.6,0.45479862]
[1771212938764,0.001,1953.1,1952.6,0.45479862]
[1771212939674,0.001,1953.1,1952.6,0.0011]
[1771212940964,0.001,1953.1,1952.6,0.45479862]
[1771212942493,0.001,1953.2,1952.7,0.45369862]
[1771212942670,0.002,1953.2,1952.7,0.45369862]
[1771212943374,0.002,1953.2,1952.6,0.0011]
[1771212945961,0.002,1953.2,1952.6,0.50060877]
[1771212947478,0.001,1953.1,1952.6,0.0011]
[1771212948896,0.48369675,1953.1,1952.6,0.0011]
[1771212949199,0.48369675,1953.0,1952.6,0.0011]